fUSD/lending_fUSD_20240501
["ID","MTS","AMOUNT","RATE_DAILY","PERIOD"]
[325130302,1714533161920,-573.64023176,0.00021041,10]
[325130303,1714533161942,-573.64023176,0.00021151,10]
[325130304,1714533161969,-573.64023176,0.00021233,10]
[325130305,1714533161991,-573.64023176,0.00021315,10]
[325130306,1714533162014,-573.64023176,0.00021397,10]
[325130307,1714533162036,-573.64023176,0.00021507,10]
[325130308,1714533162059,-573.64023176,0.00021589,10]
[325130309,1714533162273,-573.64023176,0.00021671,10]
[325130310,1714533162296,-573.64023176,0.00021753,10]
[325130311,1714533162318,-573.64023176,0.00021836,10]
[325130312,1714533162340,-200.0,0.00021917,21]
[325130313,1714533162362,-212.66520553,0.00021917,21]
[325130314,1714533162386,-573.64023176,0.00021945,10]
[325130315,1714533162407,-150.0,0.00022,10]
[325130316,1714533162433,-573.64023176,0.00022027,10]
[325130317,1714533162456,-150.0,0.000225,10]
[325130318,1714533162480,-283.313424,0.00023,11]
[325130319,1714533162506,-418.11,0.00023582,15]
[325130320,1714533162532,-155.0,0.00025,60]
[325130321,1714533162554,-10353.17489406,0.00025,30]
[325130322,1714533162576,-7613.86028963,0.0002511,30]
[325130323,1714533162602,-3967919.05271038,0.000255,30]
[325130324,1714533167761,-4000000.0,0.000255,30]
[325130325,1714533171307,-4000000.0,0.000255,30]
[325130326,1714533195225,-155.0,0.00025,60]
[325130327,1714533195250,-3999845.0,0.000255,30]
[325130328,1714533206012,-4000000.0,0.000255,30]
[325130329,1714533262260,-155.0,0.00025,60]
[325130330,1714533262284,-150.0,0.000254,13]
[325130331,1714533262308,-3999695.0,0.000255,30]
[325130332,1714533266755,-4000000.0,0.000255,30]
[325130333,1714533270758,-4000000.0,0.000255,30]
[325130334,1714533274289,-4000000.0,0.000255,30]
[325130335,1714533277943,-155.0,0.00025,60]
[325130336,1714533277969,-3999845.0,0.000255,30]
[325130337,1714533282230,-4000000.0,0.000255,30]
[325130338,1714533362867,-155.0,0.00025,60]
[325130339,1714533362894,-4999845.0,0.000255,30]
[325130340,1714533368527,-5000000.0,0.000255,30]
[325130345,1714533442516,150.84,9.104e-05,2]
[325130353,1714533570113,-155.0,0.00025,60]
[325130354,1714533570139,-4999845.0,0.000255,30]
[325130355,1714533576064,-5000000.0,0.000255,30]
[325130358,1714533656222,-155.0,0.00025,60]
[325130359,1714533656249,-4999845.0,0.000255,30]
[325130372,1714533964542,150.84,8.99e-05,2]
[325130382,1714534056562,-151.0,0.00021787,30]
[325130383,1714534056590,-1352.92467678,0.00024657,30]
[325130384,1714534056617,-155.0,0.00025,60]
[325130385,1714534056645,-4998341.07532322,0.000255,30]
[325130386,1714534062861,-5000000.0,0.000255,30]
[325130445,1714534179527,-151.0,0.00021787,30]
[325130446,1714534179563,-155.0,0.00025,60]
[325130447,1714534179589,-3999694.0,0.000255,30]
[325130448,1714534186343,-4100000.0,0.000255,30]
[325130453,1714534231814,-416.10372845,0.00010539,2]
[325130455,1714534231827,-205.96440937,0.00010539,2]
[325130456,1714534231837,-161.10137834,0.0001054,2]
[325130458,1714534231846,-250.0,0.00010802,2]
[325130460,1714534231855,-515.45,0.00010819,2]
[325130462,1714534231865,-6001.0897797,0.00010821,2]
[325130463,1714534231874,-5000.0,0.00010821,2]
[325130465,1714534231883,-5000.0,0.00010821,2]
[325130467,1714534231892,-756.35,0.00010833,2]
[325130469,1714534231901,-161.85,0.00010856,2]
[325130471,1714534231910,-1000.0,0.00010945,2]
[325130473,1714534231919,-364.15,0.00010953,2]
[325130474,1714534231928,-200.0,0.00010959,2]
[325130475,1714534231936,-150.0,0.00010999,2]
[325130476,1714534231945,-751.33373688,0.00011,2]
[325130477,1714534231954,-1250.0,0.00011,2]
[325130478,1714534231962,-201.5556722,0.00011,2]
[325130479,1714534231971,-11333.2,0.00011,2]
[325130480,1714534231979,-499.99,0.00011,2]
[325130481,1714534231987,-469.62430534,0.00011503,2]
[325130482,1714534231996,-469.62430534,0.00011508,2]
[325130483,1714534232008,-200.5032771,0.00011551,2]
[325130484,1714534232018,-347.46346374,0.00011556,2]
[325130485,1714534232026,-153.44759758,0.00011669,2]
[325130486,1714534232035,-200.0,0.000117,4]
[325130487,1714534232045,-2500.0,0.0001173,2]
[325130488,1714534232053,-159.54555922,0.00011735,2]
[325130489,1714534232062,-7500.0,0.00011757,2]
[325130490,1714534232071,-500.0,0.000118,4]
[325130491,1714534232080,-469.62430534,0.00011812,2]
[325130492,1714534232088,-163.12,0.00011819,2]
[325130493,1714534232097,-500.0,0.00011828,2]
[325130495,1714534232106,-500.0,0.00011828,2]
[325130497,1714534232115,-500.0,0.00011828,2]
[325130499,1714534232124,-500.0,0.00011828,2]
[325130501,1714534232134,-518.03,0.00011828,2]
[325130503,1714534232143,-500.0,0.00011828,2]
[325130504,1714534232152,-1651.98,0.00011828,2]
[325130505,1714534232161,-927.63,0.00011828,2]
[325130506,1714534232170,-1199.98,0.00011828,2]
[325130507,1714534232179,-880.49,0.00011828,2]
[325130508,1714534232186,-500.0,0.00011828,2]
[325130509,1714534232194,-500.0,0.00011828,2]
[325130510,1714534232201,-500.0,0.00011828,2]
[325130511,1714534232210,-500.0,0.00011828,2]
[325130512,1714534232217,-500.0,0.00011828,2]
[325130513,1714534232223,-500.0,0.00011828,2]
[325130514,1714534232229,-500.0,0.00011828,2]
[325130515,1714534232236,-1784.83,0.00011828,2]
[325130516,1714534232243,-500.0,0.00011828,2]
[325130517,1714534232250,-500.0,0.00011828,2]
[325130518,1714534232259,-500.0,0.00011828,2]
[325130519,1714534232267,-500.0,0.00011828,2]
[325130520,1714534232273,-500.0,0.00011828,2]
[325130521,1714534232280,-500.0,0.00011828,2]
[325130522,1714534232288,-500.0,0.00011828,2]
[325130523,1714534232295,-500.0,0.00011828,2]
[325130524,1714534232301,-500.0,0.00011828,2]
[325130525,1714534232308,-500.0,0.00011828,2]
[325130526,1714534232315,-500.0,0.00011828,2]
[325130527,1714534232321,-500.0,0.00011828,2]
[325130528,1714534232328,-500.0,0.00011828,2]
[325130529,1714534232335,-500.0,0.00011829,2]
[325130530,1714534232341,-500.0,0.00011829,2]
[325130531,1714534232347,-6597.99,0.00011829,2]
[325130532,1714534232354,-910.8,0.00011829,2]
[325130533,1714534232361,-600.73,0.00011829,2]
[325130534,1714534232368,-625.59,0.00011829,2]
[325130535,1714534232375,-500.0,0.00011829,2]
[325130536,1714534232381,-3546.11,0.00011829,2]
[325130537,1714534232388,-500.0,0.00011829,2]
[325130538,1714534232395,-500.0,0.00011829,2]
[325130539,1714534232402,-571.41,0.00011829,2]
[325130540,1714534232409,-500.0,0.00011829,2]
[325130541,1714534232416,-500.0,0.00011829,2]
[325130542,1714534232423,-500.0,0.00011829,2]
[325130543,1714534232431,-500.0,0.00011829,2]
[325130544,1714534232440,-690.73,0.00011829,2]
[325130545,1714534232449,-1121.05,0.00011829,2]
[325130546,1714534232458,-1285.68,0.00011829,2]
[325130547,1714534232468,-500.0,0.00011829,2]
[325130548,1714534232478,-500.0,0.00011829,2]
[325130549,1714534232487,-531.91,0.00011829,2]
[325130550,1714534232496,-500.0,0.00011829,2]
[325130551,1714534232505,-500.0,0.00011829,2]
[325130552,1714534232514,-500.0,0.00011829,2]
[325130553,1714534232523,-759.15,0.00011829,2]
[325130554,1714534232532,-500.0,0.00011829,2]
[325130555,1714534232541,-500.0,0.00011829,2]
[325130556,1714534232550,-500.0,0.00011829,2]
[325130557,1714534232559,-505.70773034,0.00011829,2]
[325130558,1714534232568,-500.0,0.00011829,2]
[325130559,1714534232578,-744.64,0.00011829,2]
[325130560,1714534232587,-2473.99,0.00011829,2]
[325130561,1714534232596,-1677.01,0.00011829,2]
[325130562,1714534232605,-987.94,0.00011829,2]
[325130563,1714534232614,-2330.96,0.00011829,2]
[325130564,1714534232623,-703.15,0.00011829,2]
[325130565,1714534232631,-3342.53,0.00011829,2]
[325130566,1714534232641,-1238.76,0.00011829,2]
[325130567,1714534232648,-500.0,0.00011829,2]
[325130568,1714534232655,-2528.75,0.00011829,2]
[325130569,1714534232663,-500.0,0.00011829,2]
[325130570,1714534232669,-500.0,0.00011829,2]
[325130571,1714534232676,-833.02,0.00011829,2]
[325130572,1714534232683,-1141.44,0.00011829,2]
[325130573,1714534232689,-705.66,0.00011829,2]
[325130574,1714534232696,-1593.92,0.00011829,2]
[325130575,1714534232703,-788.58,0.00011829,2]
[325130576,1714534232709,-1023.35,0.00011829,2]
[325130577,1714534232723,-500.0,0.00011829,2]
[325130578,1714534232732,-3431.39,0.00011829,2]
[325130579,1714534232740,-8675.09,0.00011829,2]
[325130580,1714534232747,-1852.3,0.00011829,2]
[325130581,1714534232756,-1322.06,0.00011829,2]
[325130582,1714534232764,-500.0,0.00011829,2]
[325130583,1714534232771,-500.0,0.00011829,2]
[325130584,1714534232778,-500.0,0.00011829,2]
[325130585,1714534232785,-588.06,0.00011829,2]
[325130586,1714534232792,-500.0,0.00011829,2]
[325130587,1714534232798,-502.22471734,0.00011829,2]
[325130588,1714534232806,-500.0,0.00011829,2]
[325130589,1714534232814,-500.0,0.00011829,2]
[325130590,1714534232821,-922.51,0.00011829,2]
[325130591,1714534232829,-500.0,0.00011829,2]
[325130592,1714534232836,-1281.53,0.00011829,2]
[325130593,1714534232842,-500.0,0.00011829,2]
[325130594,1714534232994,-93337.32743024,0.00011829,2]
[325130595,1714534233004,-1373.27,0.00011829,2]
[325130596,1714534233013,-943.97955516,0.00011829,2]
[325130597,1714534233069,-1487.82941497,0.00011829,2]
[325130598,1714534233078,-4352.0687415,0.00011829,2]
[325130599,1714534233087,-444.06,0.00011829,2]
[325130600,1714534233097,-1687.11715068,0.00011829,2]
[325130601,1714534233105,-1485.3825767,0.00011829,2]
[325130602,1714534233115,-1568.30535,0.00011829,2]
[325130603,1714534233124,-426.64000004,0.00011829,2]
[325130604,1714534233132,-926.39656352,0.00011829,2]
[325130608,1714534236764,600.0,0.0001,2]
[325130637,1714534237901,-500.0,0.00011828,2]
[325130638,1714534237912,-500.0,0.00011828,2]
[325130639,1714534237922,-500.0,0.00011828,2]
[325130640,1714534237932,-500.0,0.00011828,2]
[325130641,1714534237942,-500.0,0.00011828,2]
[325130642,1714534237952,-500.0,0.00011829,2]
[325130643,1714534237962,-8674.78976122,0.00011829,2]
[325130644,1714534237976,-29085.7667012,0.00011829,2]
[325130645,1714534238171,-2511.91123904,0.00011829,2]
[325130690,1714534239843,-454.6906821,0.00011828,2]
[325130691,1714534239856,-45.3093179,0.00011828,2]
[325130693,1714534239866,-500.0,0.00011828,2]
[325130695,1714534239876,-500.0,0.00011828,2]
[325130696,1714534239885,-222.59622962,0.00011829,2]
[325130698,1714534240325,-277.40377038,0.00011829,2]
[325130699,1714534240335,-11995.38678305,0.00011829,2]
[325130700,1714534240346,-252.668328,0.00011829,2]
[325130742,1714534243911,-500.0,0.00011828,2]
[325130743,1714534243920,-1854.52960777,0.00011828,2]
[325130746,1714534245807,-3389.83,0.00011828,2]
[325130748,1714534245820,-482.184,0.00011828,2]
[325130749,1714534245927,-596.53639223,0.00011828,2]
[325130750,1714534245936,-500.0,0.00011828,2]
[325130751,1714534245945,-575.7,0.00011829,2]
[325130752,1714534245954,-170.44145001,0.00011829,2]
[325130753,1714534245963,-6846.75144363,0.0001183,2]
[325130754,1714534245974,-335.30570427,0.0001183,2]
[325130755,1714534245985,-632.25287615,0.0001183,2]
[325130756,1714534246102,-490.93550515,0.00011828,2]
[325130759,1714534246114,-9.06449485,0.00011828,2]
[325130761,1714534246123,-264.24744389,0.0001183,2]
[325130804,1714534445858,-155.0,0.00025,60]
[325130805,1714534445889,-3999845.0,0.000255,30]
[325130806,1714534503630,158.47,8.888e-05,2]
[325130807,1714534533037,10155.90313738,0.000245,120]
[325130809,1714534620181,10000.0,0.00025,120]
[325130828,1714534972400,152.97861414,0.00025,120]
[325130829,1714534980038,158.47,8.898e-05,2]
[325130847,1714535175939,-2000.0,0.00024657,30]
[325130848,1714535175961,-2000.0,0.00024657,30]
[325130849,1714535175982,-2000.0,0.00024657,30]
[325130850,1714535176004,-2000.0,0.00024657,30]
[325130851,1714535176028,-2000.0,0.00024657,30]
[325130852,1714535176050,-2000.0,0.00024657,30]
[325130853,1714535176072,-2000.0,0.00024657,30]
[325130854,1714535176094,-2000.0,0.00024657,30]
[325130855,1714535176120,-2000.0,0.00024657,30]
[325130856,1714535176143,-2000.0,0.00024657,30]
[325130857,1714535176167,-2000.0,0.00024657,30]
[325130858,1714535176190,-2000.0,0.00024657,30]
[325130859,1714535176211,-2000.0,0.00024657,30]
[325130860,1714535176233,-2000.0,0.00024657,30]
[325130861,1714535176254,-2000.0,0.00024657,30]
[325130862,1714535176276,-2000.0,0.00024657,30]
[325130863,1714535176298,-1352.92467678,0.00024657,30]
[325130864,1714535176323,-155.0,0.00025,60]
[325130865,1714535176354,-5966492.07532322,0.000255,30]
[325130866,1714535183863,-3060537.53024326,0.000255,30]
[325130867,1714535183892,-323.55150125,0.00027,120]
[325131046,1714535430974,158.47,8.537e-05,2]
[325131208,1714535437784,-161.85,0.00010477,2]
[325131209,1714535437793,-155.0,0.00010509,2]
[325131210,1714535437803,-250.0,0.0001051,2]
[325131211,1714535437813,-433.008006,0.00010766,2]
[325131212,1714535437886,-4299.95061319,0.00010766,2]
[325131213,1714535437896,-622.06813782,0.00010767,2]
[325131214,1714535437905,-412.36,0.00010783,2]
[325131215,1714535437915,-150.0,0.00010795,2]
[325131216,1714535437924,-291.32,0.00010798,2]
[325131217,1714535437934,-166.19,0.00010816,2]
[325131218,1714535437944,-579.22,0.00010816,2]
[325131219,1714535437953,-936.21,0.00010863,2]
[325131220,1714535437963,-499.99,0.00010863,2]
[325131221,1714535437973,-200.0,0.00010959,2]
[325131222,1714535437982,-193.81983453,0.00011008,2]
[325131223,1714535437993,-155.78528379,0.00011033,2]
[325131224,1714535438003,-431.28814512,0.00011071,2]
[325131225,1714535438012,-193.81983453,0.00011071,2]
[325131226,1714535438022,-335.88134828,0.00011104,2]
[325131227,1714535438031,-154.20889232,0.00011119,2]
[325131228,1714535438040,-155.78528379,0.0001118,2]
[325131229,1714535438053,-193.81983453,0.00011301,2]
[325131230,1714535438062,-154.20889232,0.00011466,2]
[325131231,1714535438071,-153.44759758,0.00011522,2]
[325131232,1714535438080,-154.20889232,0.00011537,2]
[325131233,1714535438089,-335.88134828,0.00011544,2]
[325131234,1714535438099,-200.0,0.000116,4]
[325131235,1714535438110,-1014.0,0.000116,2]
[325131236,1714535438119,-431.28814512,0.00011622,2]
[325131237,1714535438129,-335.88134828,0.00011662,2]
[325131238,1714535438139,-169.5381758,0.00011698,2]
[325131239,1714535438149,-500.0,0.000117,4]
[325131240,1714535438159,-1344.66163,0.0001171,2]
[325131241,1714535438169,-1000.0,0.00011727,2]
[325131242,1714535438179,-1211.7634,0.00011728,2]
[325131243,1714535438188,-76405.9857,0.00011728,2]
[325131244,1714535438198,-1000.0,0.00011728,2]
[325131245,1714535438207,-5052.1452,0.00011728,2]
[325131246,1714535438216,-37785.0053,0.00011728,2]
[325131247,1714535438225,-46619.56858108,0.00011728,2]
[325131248,1714535438237,-608.26926,0.00011728,2]
[325131439,1714535439875,-2119.78885892,0.00011728,2]
[325131442,1714535439884,-163.15103213,0.00011728,2]
[325131445,1714535439893,-1000.0,0.00011734,2]
[325131448,1714535439902,-500.0,0.00011734,2]
[325131450,1714535439911,-1000.0,0.00011735,2]
[325131453,1714535439921,-1000.0,0.00011735,2]
[325131456,1714535439930,-1000.0,0.00011735,2]
[325131460,1714535439939,-1000.0,0.00011735,2]
[325131462,1714535439948,-500.0,0.00011735,2]
[325131465,1714535439957,-500.0,0.00011735,2]
[325131468,1714535439967,-155.78528379,0.00011793,2]
[325131472,1714535439976,-700.0,0.000118,4]
[325131474,1714535439986,-161.92,0.00011817,2]
[325131478,1714535439995,-156.63444584,0.00011818,2]
[325131480,1714535440005,-500.0,0.00011826,2]
[325131483,1714535440015,-500.0,0.00011826,2]
[325131486,1714535440024,-500.0,0.00011826,2]
[325131490,1714535440034,-1628.16,0.00011826,2]
[325131492,1714535440043,-500.0,0.00011826,2]
[325131496,1714535440054,-673.86,0.00011826,2]
[325131499,1714535440063,-500.0,0.00011826,2]
[325131501,1714535440074,-500.0,0.00011826,2]
[325131504,1714535440084,-500.0,0.00011826,2]
[325131507,1714535440098,-238.26006767,0.00011826,2]
[325131510,1714535440107,-517.28,0.00011826,2]
[325131513,1714535440117,-500.0,0.00011826,2]
[325131517,1714535440128,-557.51885913,0.00011826,2]
[325131519,1714535440138,-697.09,0.00011826,2]
[325131523,1714535440147,-1626.45,0.00011826,2]
[325131526,1714535440156,-500.0,0.00011826,2]
[325131529,1714535440167,-1892.78,0.00011826,2]
[325131531,1714535440177,-909.81,0.00011826,2]
[325131533,1714535440186,-2537.71,0.00011826,2]
[325131535,1714535440195,-1304.46,0.00011826,2]
[325131538,1714535440204,-864.64,0.00011826,2]
[325131541,1714535440215,-500.0,0.00011826,2]
[325131545,1714535440224,-500.0,0.00011826,2]
[325131547,1714535440233,-500.0,0.00011826,2]
[325131550,1714535440242,-500.0,0.00011826,2]
[325131553,1714535440251,-500.0,0.00011826,2]
[325131556,1714535440261,-500.0,0.00011826,2]
[325131559,1714535440271,-500.0,0.00011826,2]
[325131562,1714535440280,-3083.16,0.00011826,2]
[325131565,1714535440289,-500.0,0.00011826,2]
[325131568,1714535440300,-500.0,0.00011826,2]
[325131571,1714535440309,-500.0,0.00011826,2]
[325131575,1714535440319,-500.0,0.00011826,2]
[325131578,1714535440328,-500.0,0.00011826,2]
[325131581,1714535440337,-500.0,0.00011826,2]
[325131584,1714535440349,-500.0,0.00011826,2]
[325131587,1714535440359,-500.0,0.00011826,2]
[325131590,1714535440369,-1262.69,0.00011826,2]
[325131592,1714535440380,-500.0,0.00011826,2]
[325131595,1714535440389,-500.0,0.00011826,2]
[325131597,1714535440399,-10456.3,0.00011826,2]
[325131600,1714535440408,-6325.0011,0.00011826,2]
[325131602,1714535440417,-500.0,0.00011827,2]
[325131605,1714535440426,-500.0,0.00011827,2]
[325131607,1714535440436,-500.0,0.00011827,2]
[325131610,1714535440445,-500.0,0.00011827,2]
[325131612,1714535440455,-500.0,0.00011827,2]
[325131615,1714535440464,-500.0,0.00011827,2]
[325131617,1714535440473,-500.0,0.00011827,2]
[325131620,1714535440483,-500.0,0.00011827,2]
[325131623,1714535440492,-500.0,0.00011827,2]
[325131625,1714535440501,-522.48977995,0.00011827,2]
[325131628,1714535440510,-523.05,0.00011827,2]
[325131630,1714535440519,-500.0,0.00011827,2]
[325131633,1714535440529,-500.0,0.00011827,2]
[325131635,1714535440538,-500.0,0.00011827,2]
[325131638,1714535440549,-742.46,0.00011827,2]
[325131640,1714535440558,-500.0,0.00011827,2]
[325131643,1714535440568,-534.19238208,0.00011827,2]
[325131646,1714535440577,-502.14737705,0.00011827,2]
[325131648,1714535440587,-500.0,0.00011827,2]
[325131651,1714535440597,-566.05591883,0.00011827,2]
[325131653,1714535440606,-500.0,0.00011827,2]
[325131656,1714535440615,-500.0,0.00011827,2]
[325131659,1714535440625,-500.0,0.00011827,2]
[325131661,1714535440635,-500.0,0.00011827,2]
[325131664,1714535440644,-330.14017299,0.00011827,2]
[325131667,1714535440653,-500.0,0.00011827,2]
[325131669,1714535440663,-500.0,0.00011827,2]
[325131672,1714535440672,-500.0,0.00011827,2]
[325131674,1714535440682,-500.0,0.00011827,2]
[325131676,1714535440691,-500.0,0.00011827,2]
[325131678,1714535440700,-500.64082259,0.00011827,2]
[325131680,1714535440710,-500.0,0.00011827,2]
[325131683,1714535440719,-500.0,0.00011827,2]
[325131686,1714535440729,-506.77384396,0.00011827,2]
[325131689,1714535440738,-500.0,0.00011827,2]
[325131691,1714535440748,-150.0,0.00011827,2]
[325131693,1714535440757,-500.0,0.00011827,2]
[325131695,1714535440767,-500.0,0.00011827,2]
[325131697,1714535440777,-506.85089261,0.00011827,2]
[325131698,1714535440786,-500.0,0.00011827,2]
[325131699,1714535440795,-516.26798081,0.00011827,2]
[325131700,1714535440806,-500.0,0.00011827,2]
[325131702,1714535440815,-234.8191675,0.00011827,2]
[325131704,1714535440824,-631.99314844,0.00011827,2]
[325131706,1714535440834,-500.0,0.00011827,2]
[325131708,1714535440845,-500.0,0.00011827,2]
[325131710,1714535440854,-500.0,0.00011827,2]
[325131712,1714535440864,-505.73924321,0.00011827,2]
[325131714,1714535440873,-504.25478208,0.00011827,2]
[325131716,1714535440883,-415.35372013,0.00011827,2]
[325131718,1714535440892,-513.85329308,0.00011827,2]
[325131720,1714535440901,-518.31766427,0.00011827,2]
[325131722,1714535440911,-500.0,0.00011827,2]
[325131724,1714535440919,-343.98247682,0.00011827,2]
[325131726,1714535440928,-500.0,0.00011827,2]
[325131728,1714535440938,-508.36386703,0.00011827,2]
[325131730,1714535440947,-520.85503935,0.00011827,2]
[325131732,1714535440956,-505.86176377,0.00011827,2]
[325131734,1714535440965,-500.0,0.00011827,2]
[325131736,1714535440974,-500.0,0.00011827,2]
[325131738,1714535440984,-500.0,0.00011827,2]
[325131740,1714535440993,-500.0,0.00011827,2]
[325131742,1714535441003,-492.05344516,0.00011827,2]
[325131744,1714535441012,-509.41619067,0.00011827,2]
[325131746,1714535441021,-500.0,0.00011827,2]
[325131748,1714535441031,-500.0,0.00011827,2]
[325131750,1714535441041,-500.0,0.00011827,2]
[325131752,1714535441051,-500.0,0.00011827,2]
[325131754,1714535441060,-587.15,0.00011827,2]
[325131756,1714535441069,-500.0,0.00011827,2]
[325131758,1714535441078,-502.54602039,0.00011827,2]
[325131760,1714535441088,-152.33058877,0.00011827,2]
[325131762,1714535441097,-524.83806601,0.00011827,2]
[325131765,1714535441110,-500.0,0.00011827,2]
[325131767,1714535441120,-570.19908009,0.00011827,2]
[325131769,1714535441128,-500.0,0.00011827,2]
[325131771,1714535441138,-500.0,0.00011827,2]
[325131773,1714535441149,-500.0,0.00011827,2]
[325131775,1714535441158,-500.0,0.00011827,2]
[325131777,1714535441167,-504.82147539,0.00011827,2]
[325131778,1714535441176,-449.57738261,0.00011827,2]
[325131780,1714535441187,-500.0,0.00011827,2]
[325131782,1714535441197,-502.89667687,0.00011827,2]
[325131784,1714535441207,-500.0,0.00011827,2]
[325131787,1714535441216,-500.0,0.00011827,2]
[325131788,1714535441225,-500.0,0.00011827,2]
[325131791,1714535441234,-500.0,0.00011827,2]
[325131815,1714535441444,-500.0,0.00011827,2]
[325131817,1714535441454,-500.0,0.00011827,2]
[325131819,1714535441463,-500.0,0.00011827,2]
[325131821,1714535441473,-985.35,0.00011827,2]
[325131823,1714535441482,-500.0,0.00011827,2]
[325131825,1714535441492,-530.09837626,0.00011827,2]
[325131827,1714535441502,-563.36923183,0.00011827,2]
[325131829,1714535441511,-500.0,0.00011827,2]
[325131831,1714535441521,-500.0,0.00011827,2]
[325131833,1714535441530,-500.0,0.00011827,2]
[325131835,1714535441539,-505.05082423,0.00011827,2]
[325131837,1714535441550,-500.0,0.00011827,2]
[325131839,1714535441559,-507.16576823,0.00011827,2]
[325131841,1714535441568,-500.0,0.00011827,2]
[325131843,1714535441578,-500.0,0.00011827,2]
[325131845,1714535441587,-500.0,0.00011827,2]
[325131847,1714535441596,-500.0,0.00011827,2]
[325131849,1714535441605,-500.0,0.00011827,2]
[325131851,1714535441614,-500.0,0.00011827,2]
[325131853,1714535441624,-500.0,0.00011827,2]
[325131855,1714535441633,-500.0,0.00011827,2]
[325131857,1714535441643,-500.0,0.00011827,2]
[325131859,1714535441652,-500.0,0.00011827,2]
[325131861,1714535441661,-500.0,0.00011827,2]
[325131863,1714535441670,-500.0,0.00011827,2]
[325131865,1714535441679,-500.0,0.00011827,2]
[325131867,1714535441688,-500.0,0.00011827,2]
[325131869,1714535441697,-505.00328794,0.00011827,2]
[325131871,1714535441706,-500.0,0.00011827,2]
[325131873,1714535441715,-428.30796978,0.00011827,2]
[325131874,1714535441724,-506.38073647,0.00011827,2]
[325131876,1714535441734,-505.22838196,0.00011827,2]
[325131879,1714535441743,-500.0,0.00011827,2]
[325131881,1714535441752,-500.0,0.00011827,2]
[325131883,1714535441762,-517.33131746,0.00011827,2]
[325131884,1714535441771,-500.0,0.00011827,2]
[325131886,1714535441779,-500.0,0.00011827,2]
[325131888,1714535441789,-471.59805168,0.00011827,2]
[325131890,1714535441799,-500.0,0.00011827,2]
[325131892,1714535441808,-500.0,0.00011827,2]
[325131894,1714535441817,-512.32319831,0.00011827,2]
[325131897,1714535441827,-1000.0,0.00011827,2]
[325131899,1714535441836,-500.0,0.00011827,2]
[325131901,1714535441845,-509.38142537,0.00011827,2]
[325131903,1714535441855,-500.0,0.00011827,2]
[325131905,1714535441864,-500.0,0.00011827,2]
[325131906,1714535441873,-443.69573183,0.00011827,2]
[325131908,1714535441882,-503.73745665,0.00011827,2]
[325131910,1714535441892,-513.49512256,0.00011827,2]
[325131912,1714535441901,-500.0,0.00011827,2]
[325131915,1714535441911,-893.68,0.00011827,2]
[325131917,1714535441920,-500.0,0.00011827,2]
[325131919,1714535441929,-500.0,0.00011827,2]
[325131920,1714535441939,-500.0,0.00011827,2]
[325131922,1714535441948,-500.0,0.00011827,2]
[325131924,1714535441960,-500.0,0.00011827,2]
[325131927,1714535441970,-504.32022489,0.00011827,2]
[325131929,1714535441979,-500.0,0.00011827,2]
[325131931,1714535441988,-484.83043044,0.00011827,2]
[325131933,1714535441999,-500.0,0.00011827,2]
[325131934,1714535442008,-500.0,0.00011827,2]
[325131936,1714535442017,-500.0,0.00011827,2]